[Event "Early-Titled-Tuesday-Blitz-January-16-2024"]
[Site "Chess.com"]
[Date "2024.01.16"]
[Round "6"]
[White "Kopytkin"]
[Black "Barmen_EV"]
[Result "0-1"]
[WhiteElo "2389"]
[BlackElo "2540"]
[TimeControl "180+1"]
[EndTime "9:11:01 PST"]
[Termination "Barmen_EV won on time"]

1. d4 {[%clk 0:03:00.9]} 1... Nf6 {[%clk 0:02:41.5]} 2. Bg5 {[%clk 0:03:00.4]}
2... c5 {[%clk 0:02:40.5]} 3. e3 {[%clk 0:02:56.4]} 3... Qb6 {[%clk 0:02:40.5]}
4. Nc3 {[%clk 0:02:53.8]} 4... Qxb2 {[%clk 0:02:30.4]} 5. Nge2 {[%clk
0:02:31.5]} 5... Qb4 {[%clk 0:02:26.6]} 6. Bxf6 {[%clk 0:02:30.3]} 6... gxf6
{[%clk 0:02:24.5]} 7. Rb1 {[%clk 0:02:23.4]} 7... Qa3 {[%clk 0:02:02.8]} 8. Rb3
{[%clk 0:02:19.7]} 8... Qa6 {[%clk 0:01:59.7]} 9. dxc5 {[%clk 0:02:12.5]} 9...
Bg7 {[%clk 0:01:51]} 10. Nd4 {[%clk 0:01:20.5]} 10... Qa5 {[%clk 0:01:45]} 11.
Bd3 {[%clk 0:00:47.6]} 11... Nc6 {[%clk 0:01:41.1]} 12. Nf5 {[%clk 0:00:46]}
12... Bf8 {[%clk 0:01:33.2]} 13. O-O {[%clk 0:00:45.6]} 13... Qxc5 {[%clk
0:01:24.3]} 14. Ne4 {[%clk 0:00:45.5]} 14... Qa5 {[%clk 0:01:14.1]} 15. c4
{[%clk 0:00:34.2]} 15... Qc7 {[%clk 0:01:00.4]} 16. c5 {[%clk 0:00:32.4]} 16...
b6 {[%clk 0:00:55.1]} 17. Qh5 {[%clk 0:00:31.8]} 17... bxc5 {[%clk 0:00:49.7]}
18. Nfd6+ {[%clk 0:00:32]} 18... exd6 {[%clk 0:00:40.5]} 19. Nxf6+ {[%clk
0:00:31.8]} 19... Kd8 {[%clk 0:00:39.7]} 20. Qxf7 {[%clk 0:00:31.3]} 20... Be7
{[%clk 0:00:38.3]} 21. Nd5 {[%clk 0:00:25.3]} 21... Qa5 {[%clk 0:00:33.5]} 22.
Bb5 {[%clk 0:00:25.2]} 22... Re8 {[%clk 0:00:20]} 23. Rd1 {[%clk 0:00:23.9]}
23... Ba6 {[%clk 0:00:18.3]} 24. Bxc6 {[%clk 0:00:21.5]} 24... dxc6 {[%clk
0:00:18.3]} 25. Nxe7 {[%clk 0:00:20.2]} 25... Qc7 {[%clk 0:00:13.7]} 26. Nxc6+
{[%clk 0:00:13]} 26... Qxc6 {[%clk 0:00:13.6]} 27. e4 {[%clk 0:00:11.5]} 27...
c4 {[%clk 0:00:10.2]} 28. Rg3 {[%clk 0:00:10.2]} 28... c3 {[%clk 0:00:08.4]} 29.
Rg8 {[%clk 0:00:09.9]} 29... Rxg8 {[%clk 0:00:05.7]} 30. Qxg8+ {[%clk
0:00:09.2]} 30... Kc7 {[%clk 0:00:06.4]} 31. Qg7+ {[%clk 0:00:08.3]} 31... Kd8
{[%clk 0:00:03.1]} 32. Qh8+ {[%clk 0:00:05.3]} 32... Kd7 {[%clk 0:00:02.1]} 33.
Qg7+ {[%clk 0:00:05.5]} 33... Kc8 {[%clk 0:00:02.7]} 34. Qh8+ {[%clk 0:00:05.5]}
34... Kb7 {[%clk 0:00:02.9]} 35. Rb1+ {[%clk 0:00:05.4]} 35... Bb5 {[%clk
0:00:03.4]} 36. a4 {[%clk 0:00:04.9]} 36... Rxh8 {[%clk 0:00:02.9]} 37. a5
{[%clk 0:00:01.9]} 37... a6 {[%clk 0:00:03.1]} 38. Rc1 {[%clk 0:00:01.8]} 38...
c2 {[%clk 0:00:03.6]} 39. h3 {[%clk 0:00:01.5]} 39... Qc3 {[%clk 0:00:04.2]} 40.
Kh2 {[%clk 0:00:01.7]} 40... Rg8 {[%clk 0:00:04.7]} 0-1

[Event "Early-Titled-Tuesday-Blitz-January-16-2024"]
[Site "Chess.com"]
[Date "2024.01.16"]
[Round "6"]
[White "Shuvalov"]
[Black "Matols"]
[Result "0-1"]
[WhiteElo "2508"]
[BlackElo "2385"]
[TimeControl "180+1"]
[EndTime "9:11:01 PST"]
[Termination "Matols won by checkmate"]

1. d4 {[%clk 0:03:00.9]} 1... d5 {[%clk 0:03:00.3]} 2. c4 {[%clk 0:03:00.7]}
2... e6 {[%clk 0:03:00.9]} 3. Nc3 {[%clk 0:03:00.3]} 3... Nf6 {[%clk 0:03:01.5]}
4. Nf3 {[%clk 0:03:00.6]} 4... a6 {[%clk 0:03:00.5]} 5. c5 {[%clk 0:02:59.7]}
5... b6 {[%clk 0:02:54.6]} 6. cxb6 {[%clk 0:02:59]} 6... cxb6 {[%clk 0:02:54.3]}
7. Bf4 {[%clk 0:02:58.7]} 7... Bd6 {[%clk 0:02:48.3]} 8. Bg3 {[%clk 0:02:53.8]}
8... O-O {[%clk 0:02:46.8]} 9. e3 {[%clk 0:02:53.6]} 9... Nc6 {[%clk 0:02:44.6]}
10. Bd3 {[%clk 0:02:51.7]} 10... Bb7 {[%clk 0:02:42.5]} 11. Bh4 {[%clk
0:02:45.9]} 11... Be7 {[%clk 0:02:38]} 12. O-O {[%clk 0:02:45.4]} 12... Rc8
{[%clk 0:02:36.9]} 13. Qe2 {[%clk 0:02:45]} 13... b5 {[%clk 0:02:36.3]} 14. a4
{[%clk 0:02:39.8]} 14... b4 {[%clk 0:02:35]} 15. Nb1 {[%clk 0:02:39.5]} 15... a5
{[%clk 0:02:32.5]} 16. Nbd2 {[%clk 0:02:38.7]} 16... Nd7 {[%clk 0:02:20.9]} 17.
Bg3 {[%clk 0:02:36.1]} 17... Nf6 {[%clk 0:02:04.8]} 18. h3 {[%clk 0:02:15.3]}
18... Qb6 {[%clk 0:01:46.2]} 19. Nb3 {[%clk 0:02:13.1]} 19... Ne4 {[%clk
0:01:39.8]} 20. Bxe4 {[%clk 0:02:08.6]} 20... dxe4 {[%clk 0:01:40.7]} 21. Nfd2
{[%clk 0:01:32.7]} 21... Ba6 {[%clk 0:01:38.9]} 22. Nc4 {[%clk 0:01:31.4]} 22...
Nxd4 {[%clk 0:01:31.6]} 23. Nxd4 {[%clk 0:01:19.3]} 23... Bxc4 {[%clk
0:01:30.3]} 24. Qg4 {[%clk 0:01:15.7]} 24... Bxf1 {[%clk 0:01:23.9]} 25. Rxf1
{[%clk 0:01:16.6]} 25... Qc5 {[%clk 0:01:19.8]} 26. Qxe4 {[%clk 0:01:13.2]}
26... Bf6 {[%clk 0:01:15.1]} 27. Nb5 {[%clk 0:01:09.7]} 27... Rfd8 {[%clk
0:01:11.1]} 28. b3 {[%clk 0:01:04.9]} 28... Qc2 {[%clk 0:01:08.3]} 29. Qb7
{[%clk 0:00:58.9]} 29... Qxb3 {[%clk 0:01:06.1]} 30. Nd6 {[%clk 0:00:56.6]}
30... Rxd6 {[%clk 0:00:42.7]} 31. Bxd6 {[%clk 0:00:52.2]} 31... Qc4 {[%clk
0:00:37.8]} 32. Rd1 {[%clk 0:00:39.6]} 32... b3 {[%clk 0:00:36.9]} 33. Be7
{[%clk 0:00:29.4]} 33... Bxe7 {[%clk 0:00:22.6]} 34. Qxe7 {[%clk 0:00:30.3]}
34... h6 {[%clk 0:00:18.6]} 35. Rd7 {[%clk 0:00:26.8]} 35... Rf8 {[%clk
0:00:18.1]} 36. Rc7 {[%clk 0:00:22.7]} 36... Qe2 {[%clk 0:00:17.1]} 37. Rb7
{[%clk 0:00:20.7]} 37... b2 {[%clk 0:00:16.7]} 38. Kh2 {[%clk 0:00:18.4]} 38...
Qxf2 {[%clk 0:00:16.1]} 39. Qc5 {[%clk 0:00:16]} 39... Rd8 {[%clk 0:00:09.9]}
40. Qb6 {[%clk 0:00:15.5]} 40... Rd2 {[%clk 0:00:08.9]} 41. Rb8+ {[%clk
0:00:15.3]} 41... Kh7 {[%clk 0:00:09.5]} 42. Qc6 {[%clk 0:00:11.6]} 42... Qxe3
{[%clk 0:00:07.7]} 43. Rb5 {[%clk 0:00:07.5]} 43... Qf4+ {[%clk 0:00:07.4]} 44.
Kg1 {[%clk 0:00:05.4]} 44... Rd1# {[%clk 0:00:07.9]} 0-1

[Event "Early-Titled-Tuesday-Blitz-January-16-2024"]
[Site "Chess.com"]
[Date "2024.01.16"]
[Round "6"]
[White "Bkmzzzzz"]
[Black "DefiantChair"]
[Result "1-0"]
[WhiteElo "2409"]
[BlackElo "2542"]
[TimeControl "180+1"]
[EndTime "9:11:02 PST"]
[Termination "Bkmzzzzz won by resignation"]

1. e4 {[%clk 0:02:54.3]} 1... e5 {[%clk 0:02:22.2]} 2. Nf3 {[%clk 0:02:53.7]}
2... Nc6 {[%clk 0:02:22.3]} 3. Nc3 {[%clk 0:02:54.1]} 3... Nf6 {[%clk
0:02:22.1]} 4. d4 {[%clk 0:02:54.3]} 4... exd4 {[%clk 0:02:23]} 5. Nxd4 {[%clk
0:02:54.9]} 5... Bb4 {[%clk 0:02:23.5]} 6. Nxc6 {[%clk 0:02:55.4]} 6... bxc6
{[%clk 0:02:24.4]} 7. Bd3 {[%clk 0:02:55.6]} 7... d5 {[%clk 0:02:24.8]} 8. exd5
{[%clk 0:02:56.5]} 8... cxd5 {[%clk 0:02:25.6]} 9. O-O {[%clk 0:02:57.2]} 9...
O-O {[%clk 0:02:26.1]} 10. Bg5 {[%clk 0:02:57.6]} 10... c6 {[%clk 0:02:26.1]}
11. Na4 {[%clk 0:02:57.3]} 11... Rb8 {[%clk 0:02:26.1]} 12. c3 {[%clk
0:02:57.1]} 12... Bd6 {[%clk 0:02:26.6]} 13. b4 {[%clk 0:02:57.2]} 13... Be5
{[%clk 0:02:24.1]} 14. Re1 {[%clk 0:02:48.2]} 14... Qd6 {[%clk 0:02:17]} 15. h3
{[%clk 0:02:31.5]} 15... h6 {[%clk 0:02:15.6]} 16. Be3 {[%clk 0:02:30.8]} 16...
Qc7 {[%clk 0:02:14.5]} 17. Qf3 {[%clk 0:02:26.6]} 17... Re8 {[%clk 0:02:07.6]}
18. a3 {[%clk 0:02:15.7]} 18... a5 {[%clk 0:02:07]} 19. Bc2 {[%clk 0:02:10.5]}
19... Ne4 {[%clk 0:02:00.9]} 20. Bxe4 {[%clk 0:01:48.2]} 20... dxe4 {[%clk
0:02:01.8]} 21. Qe2 {[%clk 0:01:38.8]} 21... axb4 {[%clk 0:01:59.2]} 22. axb4
{[%clk 0:01:39.4]} 22... f5 {[%clk 0:01:57.3]} 23. Qc2 {[%clk 0:01:24.3]} 23...
f4 {[%clk 0:01:51.7]} 24. Bd4 {[%clk 0:01:11.5]} 24... Bxd4 {[%clk 0:01:47.1]}
25. cxd4 {[%clk 0:01:12.4]} 25... Bf5 {[%clk 0:01:38.7]} 26. Qc4+ {[%clk
0:01:10]} 26... Kh8 {[%clk 0:01:36]} 27. Nc5 {[%clk 0:01:09.8]} 27... Qd6 {[%clk
0:01:25.9]} 28. Ra7 {[%clk 0:01:04.8]} 28... Rf8 {[%clk 0:00:55.8]} 29. Nxe4
{[%clk 0:00:25.2]} 29... Qg6 {[%clk 0:00:55.1]} 30. f3 {[%clk 0:00:25.9]} 30...
Bxh3 {[%clk 0:00:54.2]} 31. Re2 {[%clk 0:00:26.3]} 31... Be6 {[%clk 0:00:42.4]}
32. Qxc6 {[%clk 0:00:23.1]} 32... Rfc8 {[%clk 0:00:41.3]} 33. Rc7 {[%clk
0:00:23]} 33... Rxc7 {[%clk 0:00:41.7]} 34. Qxc7 {[%clk 0:00:23.5]} 34... Rc8
{[%clk 0:00:42.6]} 35. Qd6 {[%clk 0:00:18.7]} 35... Qf5 {[%clk 0:00:10.9]} 36.
Nc5 {[%clk 0:00:16.4]} 36... Bc4 {[%clk 0:00:08.1]} 37. Re5 {[%clk 0:00:15.6]}
37... Qb1+ {[%clk 0:00:08]} 38. Kh2 {[%clk 0:00:16.2]} 38... Qxb4 {[%clk
0:00:06.1]} 39. Re7 {[%clk 0:00:14.7]} 39... Rg8 {[%clk 0:00:05]} 40. Qxf4
{[%clk 0:00:14.3]} 40... Qb2 {[%clk 0:00:04.6]} 41. Nd7 {[%clk 0:00:13.1]} 41...
Qxd4 {[%clk 0:00:03.1]} 42. Qxd4 {[%clk 0:00:12.6]} 1-0

[Event "Early-Titled-Tuesday-Blitz-January-16-2024"]
[Site "Chess.com"]
[Date "2024.01.16"]
[Round "6"]
[White "Road2GM3000"]
[Black "pavet"]
[Result "0-1"]
[WhiteElo "2490"]
[BlackElo "2781"]
[TimeControl "180+1"]
[EndTime "9:11:04 PST"]
[Termination "pavet won on time"]

1. d4 {[%clk 0:03:00.9]} 1... Nf6 {[%clk 0:02:54.4]} 2. c4 {[%clk 0:03:01.4]}
2... g6 {[%clk 0:02:54]} 3. Nc3 {[%clk 0:03:01.6]} 3... d5 {[%clk 0:02:54.6]} 4.
Bg5 {[%clk 0:03:01.3]} 4... Bg7 {[%clk 0:02:48.8]} 5. e3 {[%clk 0:03:01.1]} 5...
dxc4 {[%clk 0:02:40]} 6. Bxc4 {[%clk 0:03:00.9]} 6... O-O {[%clk 0:02:40.7]} 7.
Nf3 {[%clk 0:03:01]} 7... c5 {[%clk 0:02:39.3]} 8. O-O {[%clk 0:02:52]} 8...
cxd4 {[%clk 0:02:35.4]} 9. Nxd4 {[%clk 0:02:52.9]} 9... a6 {[%clk 0:02:32.5]}
10. a4 {[%clk 0:02:44.7]} 10... Nbd7 {[%clk 0:02:31]} 11. Qe2 {[%clk 0:02:39.7]}
11... Qa5 {[%clk 0:02:28.2]} 12. Bh4 {[%clk 0:02:31.8]} 12... Ne5 {[%clk
0:02:21.8]} 13. Ba2 {[%clk 0:02:27]} 13... Bd7 {[%clk 0:02:21.3]} 14. Bg3 {[%clk
0:02:14.3]} 14... Rac8 {[%clk 0:02:14.9]} 15. Rfd1 {[%clk 0:02:11.9]} 15... Nc6
{[%clk 0:02:12]} 16. Nb3 {[%clk 0:01:53.9]} 16... Qb4 {[%clk 0:02:10.2]} 17. Nc1
{[%clk 0:01:45.6]} 17... Rfd8 {[%clk 0:02:03]} 18. Nd3 {[%clk 0:01:45.7]} 18...
Qb6 {[%clk 0:01:59.1]} 19. Rab1 {[%clk 0:01:41.3]} 19... Bg4 {[%clk 0:01:56.2]}
20. f3 {[%clk 0:01:39.9]} 20... Bf5 {[%clk 0:01:56.5]} 21. Bf2 {[%clk
0:01:34.6]} 21... Bxd3 {[%clk 0:01:47.6]} 22. Rxd3 {[%clk 0:01:35.5]} 22... Nb4
{[%clk 0:01:46.4]} 23. Rxd8+ {[%clk 0:01:32.8]} 23... Rxd8 {[%clk 0:01:47.3]}
24. e4 {[%clk 0:01:27.4]} 24... Qa5 {[%clk 0:01:45.3]} 25. Bc4 {[%clk
0:01:22.1]} 25... Nh5 {[%clk 0:01:45.4]} 26. Be3 {[%clk 0:01:17.5]} 26... Bd4
{[%clk 0:01:44.2]} 27. Qf2 {[%clk 0:01:07.2]} 27... Bxe3 {[%clk 0:01:35.3]} 28.
Qxe3 {[%clk 0:01:08.1]} 28... Qe5 {[%clk 0:01:34]} 29. g3 {[%clk 0:01:00.8]}
29... e6 {[%clk 0:00:45]} 30. Kg2 {[%clk 0:00:45.6]} 30... Rd4 {[%clk
0:00:43.8]} 31. Bb3 {[%clk 0:00:41.5]} 31... Qd6 {[%clk 0:00:40.2]} 32. Re1
{[%clk 0:00:37.6]} 32... Nd3 {[%clk 0:00:32.6]} 33. Re2 {[%clk 0:00:36.1]} 33...
Nc5 {[%clk 0:00:29.9]} 34. Bc2 {[%clk 0:00:33.4]} 34... Ng7 {[%clk 0:00:28.8]}
35. h3 {[%clk 0:00:20.6]} 35... h5 {[%clk 0:00:28.8]} 36. f4 {[%clk 0:00:17.2]}
36... e5 {[%clk 0:00:25.5]} 37. f5 {[%clk 0:00:15.4]} 37... gxf5 {[%clk
0:00:23.1]} 38. exf5 {[%clk 0:00:16.3]} 38... h4 {[%clk 0:00:23.6]} 39. g4
{[%clk 0:00:14.1]} 39... f6 {[%clk 0:00:23]} 40. Ne4 {[%clk 0:00:10.6]} 40...
Qc6 {[%clk 0:00:22.6]} 41. Kh2 {[%clk 0:00:08.2]} 41... Nxe4 {[%clk 0:00:22.9]}
42. Bxe4 {[%clk 0:00:08.5]} 42... Qd6 {[%clk 0:00:23.4]} 43. Bc2 {[%clk
0:00:07.7]} 43... b5 {[%clk 0:00:23.1]} 44. axb5 {[%clk 0:00:07.5]} 44... axb5
{[%clk 0:00:24]} 45. Bb3+ {[%clk 0:00:07.9]} 45... Kh7 {[%clk 0:00:21.3]} 46.
Bf7 {[%clk 0:00:07.6]} 46... Rf4 {[%clk 0:00:20.8]} 47. Rd2 {[%clk 0:00:06.6]}
47... Qb4 {[%clk 0:00:19.8]} 48. Bg6+ {[%clk 0:00:06]} 48... Kh6 {[%clk
0:00:18.5]} 49. Qd3 {[%clk 0:00:01.8]} 49... Kg5 {[%clk 0:00:16.6]} 50. Qe3
{[%clk 0:00:01.5]} 50... Qc4 {[%clk 0:00:16.4]} 0-1

[Event "Early-Titled-Tuesday-Blitz-January-16-2024"]
[Site "Chess.com"]
[Date "2024.01.16"]
[Round "6"]
[White "Chessbard1972"]
[Black "vladgoncharov"]
[Result "0-1"]
[WhiteElo "2402"]
[BlackElo "2582"]
[TimeControl "180+1"]
[EndTime "9:11:04 PST"]
[Termination "vladgoncharov won on time"]

1. d4 {[%clk 0:02:59.6]} 1... Nf6 {[%clk 0:02:59.5]} 2. c4 {[%clk 0:02:59.4]}
2... e6 {[%clk 0:02:59.1]} 3. Nf3 {[%clk 0:02:59]} 3... c5 {[%clk 0:02:58.6]} 4.
d5 {[%clk 0:02:58.6]} 4... exd5 {[%clk 0:02:58.6]} 5. cxd5 {[%clk 0:02:58.6]}
5... d6 {[%clk 0:02:59.3]} 6. Nc3 {[%clk 0:02:58.9]} 6... g6 {[%clk 0:02:59.1]}
7. Nd2 {[%clk 0:02:59.5]} 7... Nbd7 {[%clk 0:02:58.4]} 8. Nc4 {[%clk 0:03:00.1]}
8... Nb6 {[%clk 0:02:58.2]} 9. e4 {[%clk 0:02:54.8]} 9... Nxc4 {[%clk
0:02:49.5]} 10. Bxc4 {[%clk 0:02:54.6]} 10... Bg7 {[%clk 0:02:49.5]} 11. Bb5+
{[%clk 0:02:52.6]} 11... Bd7 {[%clk 0:02:48.1]} 12. Bxd7+ {[%clk 0:02:50.8]}
12... Qxd7 {[%clk 0:02:47.9]} 13. a4 {[%clk 0:02:49.7]} 13... O-O {[%clk
0:02:47]} 14. O-O {[%clk 0:02:49.9]} 14... Rab8 {[%clk 0:02:46.6]} 15. Re1
{[%clk 0:02:47]} 15... a6 {[%clk 0:02:41.9]} 16. a5 {[%clk 0:02:46.2]} 16... b5
{[%clk 0:02:40.7]} 17. axb6 {[%clk 0:02:46.4]} 17... Rxb6 {[%clk 0:02:40.4]} 18.
h3 {[%clk 0:02:44.7]} 18... Qb7 {[%clk 0:02:38.2]} 19. Bf4 {[%clk 0:02:39.1]}
19... Rd8 {[%clk 0:02:26.2]} 20. Na4 {[%clk 0:02:36]} 20... Rb4 {[%clk
0:02:25.6]} 21. f3 {[%clk 0:02:02.8]} 21... Nh5 {[%clk 0:02:15.8]} 22. Bg5
{[%clk 0:02:00.4]} 22... Rb8 {[%clk 0:02:11]} 23. Qd3 {[%clk 0:01:49.7]} 23...
Qb5 {[%clk 0:01:57.5]} 24. Qa3 {[%clk 0:01:40.1]} 24... Bd4+ {[%clk 0:01:40.1]}
25. Kh2 {[%clk 0:01:36.6]} 25... Rb3 {[%clk 0:01:36.6]} 26. Qa2 {[%clk
0:01:33.4]} 26... Qd3 {[%clk 0:01:23.7]} 27. Rad1 {[%clk 0:01:26.8]} 27... Qc2
{[%clk 0:01:23.4]} 28. Rd2 {[%clk 0:01:24.9]} 28... Qc4 {[%clk 0:01:22.4]} 29.
Qa1 {[%clk 0:01:02.4]} 29... Be5+ {[%clk 0:01:15.6]} 30. Kg1 {[%clk 0:00:53.5]}
30... Ng3 {[%clk 0:01:15.2]} 31. Be3 {[%clk 0:00:46.4]} 31... Rxe3 {[%clk
0:01:10.7]} 32. Rxe3 {[%clk 0:00:45.4]} 32... Bd4 {[%clk 0:01:10.6]} 33. Kf2
{[%clk 0:00:38.9]} 33... f5 {[%clk 0:01:03.4]} 34. Kxg3 {[%clk 0:00:28.1]} 34...
Bxe3 {[%clk 0:01:02.9]} 35. Rd1 {[%clk 0:00:26.3]} 35... Qc2 {[%clk 0:01:01.1]}
36. Kh2 {[%clk 0:00:17.5]} 36... fxe4 {[%clk 0:00:58.9]} 37. fxe4 {[%clk
0:00:17.1]} 37... Qxe4 {[%clk 0:00:57.6]} 38. Nc3 {[%clk 0:00:16.8]} 38... Qf4+
{[%clk 0:00:54.1]} 39. Kh1 {[%clk 0:00:16.8]} 39... Bd4 {[%clk 0:00:54.1]} 40.
Rf1 {[%clk 0:00:15.6]} 40... Qg3 {[%clk 0:00:45.4]} 41. Rf3 {[%clk 0:00:14.8]}
41... Qg5 {[%clk 0:00:43.5]} 42. Ne2 {[%clk 0:00:08.1]} 42... Be5 {[%clk
0:00:42.6]} 43. Qxa6 {[%clk 0:00:06.5]} 43... Qd8 {[%clk 0:00:37.4]} 44. Qa7
{[%clk 0:00:05.9]} 44... Rxb2 {[%clk 0:00:33.5]} 45. Qf7+ {[%clk 0:00:05]} 45...
Kh8 {[%clk 0:00:33.8]} 46. Ng3 {[%clk 0:00:04.4]} 46... Rb1+ {[%clk 0:00:33.3]}
47. Kh2 {[%clk 0:00:03.7]} 47... c4 {[%clk 0:00:31.1]} 48. Qe6 {[%clk 0:00:02]}
48... c3 {[%clk 0:00:30.4]} 49. Rf7 {[%clk 0:00:01]} 49... c2 {[%clk 0:00:27.9]}
50. Re7 {[%clk 0:00:01.2]} 50... c1=Q {[%clk 0:00:25.6]} 51. Re8+ {[%clk
0:00:01.2]} 51... Kg7 {[%clk 0:00:24.6]} 0-1

[Event "Early-Titled-Tuesday-Blitz-January-16-2024"]
[Site "Chess.com"]
[Date "2024.01.16"]
[Round "6"]
[White "Adar_07"]
[Black "Rsnr"]
[Result "0-1"]
[WhiteElo "2670"]
[BlackElo "2870"]
[TimeControl "180+1"]
[EndTime "9:11:05 PST"]
[Termination "Rsnr won by checkmate"]

1. Nf3 {[%clk 0:03:00.9]} 1... d5 {[%clk 0:03:00.2]} 2. e3 {[%clk 0:02:59.3]}
2... Nf6 {[%clk 0:03:00.2]} 3. c4 {[%clk 0:02:56.8]} 3... c6 {[%clk 0:03:00.6]}
4. Nc3 {[%clk 0:02:56.6]} 4... e6 {[%clk 0:03:00.7]} 5. b3 {[%clk 0:02:55.8]}
5... Bd6 {[%clk 0:03:00.6]} 6. Bb2 {[%clk 0:02:56.2]} 6... O-O {[%clk
0:03:01.3]} 7. g3 {[%clk 0:02:55]} 7... e5 {[%clk 0:02:59.9]} 8. Bg2 {[%clk
0:02:53.2]} 8... Re8 {[%clk 0:02:55.9]} 9. O-O {[%clk 0:02:50]} 9... a6 {[%clk
0:02:53.9]} 10. Rc1 {[%clk 0:02:45.5]} 10... Bf5 {[%clk 0:02:50]} 11. d3 {[%clk
0:02:37.4]} 11... Qe7 {[%clk 0:02:45]} 12. Re1 {[%clk 0:02:35.1]} 12... Nbd7
{[%clk 0:02:24.3]} 13. h3 {[%clk 0:02:17.4]} 13... Rad8 {[%clk 0:02:01.7]} 14.
Qe2 {[%clk 0:02:12.7]} 14... Bg6 {[%clk 0:01:56.1]} 15. Nh4 {[%clk 0:02:12.2]}
15... dxc4 {[%clk 0:01:43.5]} 16. Nxg6 {[%clk 0:02:11.2]} 16... hxg6 {[%clk
0:01:44.4]} 17. dxc4 {[%clk 0:02:11.7]} 17... Ba3 {[%clk 0:01:44.5]} 18. Rcd1
{[%clk 0:02:10.1]} 18... Bxb2 {[%clk 0:01:44.9]} 19. Qxb2 {[%clk 0:02:10.2]}
19... Nc5 {[%clk 0:01:40.2]} 20. Qc2 {[%clk 0:02:08.8]} 20... a5 {[%clk
0:01:26.7]} 21. h4 {[%clk 0:02:01.1]} 21... Rxd1 {[%clk 0:01:04.7]} 22. Rxd1
{[%clk 0:02:00.3]} 22... Rd8 {[%clk 0:01:05.6]} 23. a3 {[%clk 0:01:57.8]} 23...
Rxd1+ {[%clk 0:00:59.2]} 24. Qxd1 {[%clk 0:01:58.7]} 24... Ne6 {[%clk
0:00:51.9]} 25. Qc1 {[%clk 0:01:50]} 25... Qd6 {[%clk 0:00:49.1]} 26. Na4 {[%clk
0:01:39.6]} 26... e4 {[%clk 0:00:39.7]} 27. c5 {[%clk 0:01:38.5]} 27... Qd3
{[%clk 0:00:37.2]} 28. Qb2 {[%clk 0:01:22]} 28... Ng4 {[%clk 0:00:19.5]} 29. Bf1
{[%clk 0:01:20.4]} 29... Qd5 {[%clk 0:00:16.6]} 30. b4 {[%clk 0:01:16.4]} 30...
axb4 {[%clk 0:00:15.2]} 31. axb4 {[%clk 0:01:17.3]} 31... Ne5 {[%clk 0:00:15.1]}
32. Nc3 {[%clk 0:01:15.6]} 32... Nf3+ {[%clk 0:00:15]} 33. Kg2 {[%clk
0:01:14.7]} 33... Qe5 {[%clk 0:00:15.9]} 34. Qc1 {[%clk 0:01:08.1]} 34... g5
{[%clk 0:00:15.4]} 35. hxg5 {[%clk 0:01:01.1]} 35... Nexg5 {[%clk 0:00:15.5]}
36. Be2 {[%clk 0:01:00.9]} 36... Qf5 {[%clk 0:00:15.6]} 37. Qh1 {[%clk
0:00:57.3]} 37... Qe5 {[%clk 0:00:13.6]} 38. Na4 {[%clk 0:00:52]} 38... g6
{[%clk 0:00:08.3]} 39. Qh6 {[%clk 0:00:50.3]} 39... Qa1 {[%clk 0:00:06.5]} 40.
Bf1 {[%clk 0:00:33.7]} 40... Qxa4 {[%clk 0:00:06.1]} 41. Bc4 {[%clk 0:00:34.4]}
41... Qd1 {[%clk 0:00:02.6]} 42. Qxg6+ {[%clk 0:00:33.9]} 42... Kf8 {[%clk
0:00:03.3]} 43. Qh6+ {[%clk 0:00:23.7]} 43... Ke7 {[%clk 0:00:03.9]} 44. Bf1
{[%clk 0:00:24.3]} 44... Qd5 {[%clk 0:00:04.1]} 45. Qh8 {[%clk 0:00:20.1]} 45...
Qe5 {[%clk 0:00:02.7]} 46. Qc8 {[%clk 0:00:19.5]} 46... Kf6 {[%clk 0:00:01.8]}
47. Qxb7 {[%clk 0:00:19.5]} 47... Qf5 {[%clk 0:00:02.4]} 48. Qxc6+ {[%clk
0:00:19.7]} 48... Kg7 {[%clk 0:00:03.2]} 49. Kh1 {[%clk 0:00:17.1]} 49... Qg4
{[%clk 0:00:03.3]} 50. Kg2 {[%clk 0:00:17.8]} 50... Qh3# {[%clk 0:00:03.6]} 0-1

[Event "Early-Titled-Tuesday-Blitz-January-16-2024"]
[Site "Chess.com"]
[Date "2024.01.16"]
[Round "6"]
[White "Iball95"]
[Black "NikaVolkov"]
[Result "1-0"]
[WhiteElo "2751"]
[BlackElo "2583"]
[TimeControl "180+1"]
[EndTime "9:11:06 PST"]
[Termination "Iball95 won on time"]

1. e4 {[%clk 0:03:00.9]} 1... c5 {[%clk 0:02:57]} 2. Nf3 {[%clk 0:03:00.4]} 2...
e6 {[%clk 0:02:57.4]} 3. Nc3 {[%clk 0:03:00.5]} 3... d5 {[%clk 0:02:58]} 4. d4
{[%clk 0:03:00.2]} 4... Nf6 {[%clk 0:02:57.2]} 5. exd5 {[%clk 0:02:54.6]} 5...
exd5 {[%clk 0:02:58.1]} 6. Bb5+ {[%clk 0:02:49.2]} 6... Nc6 {[%clk 0:02:58.4]}
7. Ne5 {[%clk 0:02:49]} 7... Qb6 {[%clk 0:02:49]} 8. Be3 {[%clk 0:02:21.2]} 8...
cxd4 {[%clk 0:02:43.7]} 9. Qxd4 {[%clk 0:02:05.8]} 9... Qxd4 {[%clk 0:01:04.4]}
10. Bxd4 {[%clk 0:02:02.2]} 10... Bd7 {[%clk 0:01:05.1]} 11. Nxd7 {[%clk
0:02:01.5]} 11... Nxd7 {[%clk 0:01:06]} 12. O-O-O {[%clk 0:01:37.4]} 12... a6
{[%clk 0:00:59.4]} 13. Nxd5 {[%clk 0:01:27.8]} 13... axb5 {[%clk 0:00:53.4]} 14.
Nc7+ {[%clk 0:01:27.4]} 14... Kd8 {[%clk 0:00:53.8]} 15. Nxa8 {[%clk 0:01:27.9]}
15... Nxd4 {[%clk 0:00:50.2]} 16. Rxd4 {[%clk 0:01:28.3]} 16... Bc5 {[%clk
0:00:49.4]} 17. Rd5 {[%clk 0:01:28.2]} 17... Kc8 {[%clk 0:00:49.7]} 18. Rhd1
{[%clk 0:01:22.6]} 18... Rd8 {[%clk 0:00:50.3]} 19. b4 {[%clk 0:01:07]} 19...
Bxf2 {[%clk 0:00:46.3]} 20. Rxb5 {[%clk 0:01:04.1]} 20... Re8 {[%clk 0:00:38.7]}
21. a4 {[%clk 0:01:02.8]} 21... b6 {[%clk 0:00:31.5]} 22. a5 {[%clk 0:01:00.7]}
22... bxa5 {[%clk 0:00:24.2]} 23. bxa5 {[%clk 0:01:01.6]} 23... Re6 {[%clk
0:00:23]} 24. Rd3 {[%clk 0:00:54.1]} 24... Ra6 {[%clk 0:00:16.5]} 25. Rc3+
{[%clk 0:00:36.7]} 25... Kd8 {[%clk 0:00:16.9]} 26. Nc7 {[%clk 0:00:33.9]} 26...
Ra7 {[%clk 0:00:17.6]} 27. Nd5 {[%clk 0:00:30.5]} 27... f6 {[%clk 0:00:18.1]}
28. Nb4 {[%clk 0:00:28.9]} 28... Ke8 {[%clk 0:00:13.2]} 29. Rc8+ {[%clk
0:00:28.2]} 29... Kf7 {[%clk 0:00:13.2]} 30. a6 {[%clk 0:00:27.7]} 30... Nb6
{[%clk 0:00:11.6]} 31. Rc6 {[%clk 0:00:25.7]} 31... Be3+ {[%clk 0:00:07.5]} 32.
Kb1 {[%clk 0:00:24.2]} 32... Nd7 {[%clk 0:00:02.2]} 33. Rb7 {[%clk 0:00:24.2]}
33... Ke7 {[%clk 0:00:02.9]} 34. Rcc7 {[%clk 0:00:22.7]} 34... Rxb7 {[%clk
0:00:01.8]} 35. axb7 {[%clk 0:00:23.6]} 35... Ba7 {[%clk 0:00:01.4]} 36. Nc6+
{[%clk 0:00:22.1]} 36... Kd6 {[%clk 0:00:02.3]} 37. Rxd7+ {[%clk 0:00:20]} 37...
Kxd7 {[%clk 0:00:03.2]} 38. Nxa7 {[%clk 0:00:19.8]} 38... Kc7 {[%clk 0:00:04.1]}
39. Kb2 {[%clk 0:00:18.6]} 39... g5 {[%clk 0:00:05]} 40. Kc3 {[%clk 0:00:18.3]}
40... h5 {[%clk 0:00:05.9]} 41. Nb5+ {[%clk 0:00:18.6]} 41... Kxb7 {[%clk
0:00:06.2]} 42. Kd4 {[%clk 0:00:18.8]} 42... Kc6 {[%clk 0:00:07.1]} 43. Nc3
{[%clk 0:00:18.5]} 43... f5 {[%clk 0:00:07.8]} 44. Ke5 {[%clk 0:00:18.8]} 44...
f4 {[%clk 0:00:08.7]} 45. Ne4 {[%clk 0:00:18]} 45... h4 {[%clk 0:00:07.5]} 46.
Kf5 {[%clk 0:00:16.1]} 46... h3 {[%clk 0:00:08.4]} 47. gxh3 {[%clk 0:00:16.1]}
47... f3 {[%clk 0:00:09.3]} 48. Kxg5 {[%clk 0:00:15.5]} 1-0